[Event "FIDE WSCC 65 2022"]
[Site "Assisi"]
[Date "2022.11.23"]
[Round "8.10"]
[White "Roos, Louis"]
[Black "Peretz, Malkiel"]
[Result "1-0"]
[ECO "D41"]
[WhiteElo "2293"]
[BlackElo "2142"]
[Annotator "TA"]
[PlyCount "125"]
[EventDate "2022.11.14"]
[EventType "swiss"]
[EventCountry "ITA"]
[SourceTitle "playchess.com"]
[Source "ChessBase"]
[SourceQuality "1"]
[TimeControl "40/5400+30:1800+30"]

{[%evp 13,125,20,18,14,21,13,22,23,29,20,20,20,20,20,29,22,56,46,42,41,35,27,25,32,26,10,20,13,20,12,24,0,26,0,19,8,11,0,64,64,64,48,49,50,58,7,10,0,58,50,52,13,77,68,79,72,87,50,53,52,56,34,34,0,60,34,40,0,41,40,41,42,81,38,36,25,37,0,14,4,8,8,9,0,0,0,0,0,74,74,95,80,170,166,247,271,838,838,818,804,833,824,780,729,896,840,756,750,926,912,938,951,1299,1092]} 1. c4 {[%emt 0:00:25]} Nf6 {[%emt 0:00:25]} 2. Nc3 {[%emt 0:01:40]} e6 {[%emt 0:01:22]} 3. Nf3 {[%emt 0:06:45]} d5 {[%emt 0:01:18]} 4. d4 {[%emt 0:03:00]} c5 {[%emt 0:02:24]} 5. cxd5 {[%emt 0:02:46]} cxd4 {[%emt 0:07:17]} 6. Qxd4 {[%emt 0:09:54]} exd5 {[%emt 0:02:22]} 7. e4 {[%emt 0:16:10]} Nc6 {[%emt 0:08:13] 7...dxe4 might become the main line.} 8. Bb5 {[%emt 0:00:55][%cal Re4d5] D41: Queen's Gambit Declined: Semi-Tarrasch with 5 cxd5.} dxe4 {[%emt 0:03:07]} 9. Qxd8+ {[%emt 0:01:44]} Kxd8 {[%emt 0:00:08]} 10. Ng5 {[%emt 0:03:01][%csl LRe4,LRf7] The position is equal.} Be6 {[%emt 0:01:20]} 11. Nxe6+ {[%emt 0:13:14]} ({Of course not} 11. Ngxe4 Nxe4 12. Nxe4 Bb4+ 13. Nc3 Ke7 $11) 11... fxe6 {[%emt 0:00:13]} 12. Bxc6 {[%emt 0:00:34]} bxc6 {[%emt 0:00:10]} 13. Bg5 {[%emt 0:00:13]} Kc7 {[%emt 0:06:04]} 14. O-O-O {[%emt 0:07:00]} Be7 {[%emt 0:05:38]} 15. Rhe1 {[%emt 0:05:22] [#]} Rad8 $146 {[%emt 0:09:32]} ({Predecessor:} 15... Bb4 16. Bxf6 gxf6 17. Rxe4 Bxc3 18. bxc3 e5 19. f4 Rae8 20. Ra4 exf4 21. Rxf4 Re2 {1-0 (46) Hoi,C (2407)-Rendboe,J (2243) Copenhagen 2001}) 16. Rxd8 {[%emt 0:10:13]} Rxd8 {[%emt 0:01:48]} 17. Nxe4 {[%emt 0:00:41]} Rd5 {[%emt 0:06:12]} 18. Bf4+ {[%emt 0:01:38]} Kd7 {[%emt 0:02:28]} 19. Nc3 {[%emt 0:01:12]} Rf5 {[%emt 0:02:14]} 20. Be3 {[%emt 0:00:26]} a6 {[%emt 0:02:13]} 21. f3 {[%emt 0:01:28]} Nd5 {[%emt 0:11:52]} 22. Bd4 {[%emt 0:01:47]} Bb4 {[%emt 0:02:24]} 23. Rd1 {[%emt 0:01:10]} Bxc3 {[%emt 0:02:40]} 24. Bxc3 $11 {[%emt 0:01:10][%mdl 4096] Endgame KRB-KRN} Ke7 {[%emt 0:02:31]} 25. Rd4 {[%emt 0:03:21]} g6 {[%emt 0:03:21]} (25... Nxc3 $11 26. bxc3 Ra5) 26. Bd2 $14 {[%emt 0:01:11]} Nb6 {[%emt 0:03:36]} 27. b3 {[%emt 0:01:37]} c5 {[%emt 0:02:19]} 28. Re4 {[%emt 0:00:38]} Kd6 {[%emt 0:00:38]} 29. Ba5 {[%emt 0:01:17]} (29. Kc2 $14) 29... Nd5 $11 {[%emt 0:00:34]} 30. Be1 {[%emt 0:00:16]} Nb6 {[%emt 0:01:10] Prevents Ra4.} (30... Nf4 $11) 31. Bg3+ {[%emt 0:01:12]} Kd7 {[%emt 0:00:13]} 32. Bf2 {[%emt 0:00:48]} Rd5 {[%emt 0:04:15]} (32... Nd5 $1 $11 {remains equal.}) 33. Kc2 $16 {[%emt 0:00:25]} Kd6 {[%emt 0:01:53]} 34. Bg3+ {[%emt 0:01:16]} Kd7 {[%emt 0:00:59]} 35. a3 {[%emt 0:01:00]} Rf5 {[%emt 0:01:53]} 36. Bf2 {[%emt 0:00:24]} Kd6 {[%emt 0:01:07]} 37. Rg4 {[%emt 0:00:43]} Kc6 {[%emt 0:00:35]} 38. Re4 {[%emt 0:00:38]} e5 {[%emt 0:00:42]} (38... Kd6 $1 $11) 39. Bg3 {[%emt 0:00:53]} Kd5 {[%emt 0:00:17]} 40. Bf2 {[%emt 0:00:46]} Rf4 {[%emt 0:00:51]} 41. Re2 {[%emt 0:31:17]} Nd7 {[%emt 0:31:51]} 42. Kc3 {[%emt 0:00:12]} a5 {[%emt 0:00:00]} 43. Rd2+ {[%emt 0:00:00]} Kc6 $1 {[%emt 0:00:00]} 44. Be3 {[%emt 0:00:00]} Rf7 {[%emt 0:00:00]} 45. Kd3 {[%emt 0:00:00]} Nf6 {[%emt 0:00:00]} 46. Kc4 {[%emt 0:00:00]} Nd7 {[%emt 0:00:00]} 47. Rc2 {[%emt 0:00:00]} Rf8 {[%emt 0:00:00]} 48. Kd3 {[%emt 0:00:00]} Rb8 {[%emt 0:00:00] Against b4} 49. Rc3 {[%emt 0:00:00]} Kd5 {[%emt 0:00:00]} 50. Kc2 {[%emt 0:00:00]} Rb7 {[%emt 0:00:00]} (50... a4 $1 $11 {keeps the balance.}) 51. Rc4 {[%emt 0:00:00]} Kc6 {[%emt 0:00:00]} 52. Ra4 {[%emt 0:00:00] White is more active.} Rb5 {[%emt 0:00:00]} (52... Ra7 $16) 53. Bd2 $18 {[%emt 0:00:00]} Kb6 {[%emt 0:00:00]} (53... Nf8 $142) 54. Rh4 {[%emt 0:00:09] [#] a4 is the strong threat.} Nf8 $2 {[%emt 0:00:00]} (54... Kc6 55. a4 (55. Rxh7 Nf8 $18) 55... Rb6 56. Rxh7 (56. Bxa5 Ra6 $18) 56... Nf8) 55. a4 {[%emt 0:00:23] White is clearly winning.} Rb4 {[%emt 0:00:00]} 56. Bxb4 {[%emt 0:00:09]} cxb4 {[%emt 0:00:00] KR-KN} 57. Kd3 {[%emt 0:02:27]} Kc5 {[%emt 0:00:00]} 58. Rc4+ {[%emt 0:00:38]} Kd5 {[%emt 0:00:00]} 59. Rc8 {[%emt 0:00:43]} Ne6 {[%emt 0:00:00]} 60. Ra8 {[%emt 0:00:21]} Nf4+ {[%emt 0:00:00]} 61. Kd2 {[%emt 0:00:16]} Nxg2 {[%emt 0:00:00]} 62. Rxa5+ {[%emt 0:00:11]} Kd4 {[%emt 0:00:00]} 63. Rb5 {[%emt 0:06:21] Weighted Error Value: White=0.11 (very precise) /Black=0.22 (precise)} 1-0

[Event "FIDE WSCC 65 2022"]
[Site "Assisi"]
[Date "2022.11.23"]
[Round "8.11"]
[White "Chapman, Terry P D"]
[Black "Lanc, Alois"]
[Result "1/2-1/2"]
[ECO "A41"]
[WhiteElo "2216"]
[BlackElo "2268"]
[Annotator "TA"]
[PlyCount "80"]
[EventDate "2022.11.14"]
[EventType "swiss"]
[EventCountry "ITA"]
[SourceTitle "playchess.com"]
[Source "ChessBase"]
[SourceQuality "1"]
[TimeControl "40/5400+30:1800+30"]

{[%evp 12,80,52,59,53,44,49,46,52,37,39,41,47,44,55,47,55,51,41,51,47,8,61,54,54,58,102,108,134,141,144,141,155,158,156,77,80,55,81,72,60,74,49,11,11,11,13,18,52,0,0,0,0,0,11,0,0,0,0,0,0,0,0,0,0,0,0,0,0,0,0]} 1. d4 {[%emt 0:00:11]} g6 {[%emt 0:00:19]} 2. Nf3 {[%emt 0:00:25]} Bg7 {[%emt 0:00:06]} 3. c4 {[%emt 0:00:18]} d6 {[%emt 0:00:33]} 4. g3 {[%emt 0:00:31]} e5 {[%emt 0:02:42]} 5. dxe5 {[%emt 0:06:06]} dxe5 {[%emt 0:00:37]} 6. Qxd8+ {[%emt 0:00:05]} Kxd8 {[%emt 0:00:04]} 7. Bg2 {[%emt 0:01:46]} h6 {[%emt 0:03:25] A41: 1 d4 d6: Tartakower System and Modern Defence.} 8. Nc3 {[%emt 0:02:12]} Nc6 {[%emt 0:12:42]} 9. O-O {[%emt 0:03:17]} Be6 {[%emt 0:02:05] [#] White is slightly better.} 10. Rd1+ $146 {[%emt 0:03:30]} ({Predecessor:} 10. Nd5 Nce7 11. Rd1 Kc8 12. Nd2 c6 13. Nxe7+ Nxe7 14. Ne4 b6 15. b3 Nf5 16. Ba3 {½-½ (50) Hartl,D (2233)-Fahrner,K (2314) Austria 2011}) 10... Kc8 {[%emt 0:02:56]} 11. Nd2 {[%emt 0:04:46]} Nge7 {[%emt 0:07:24]} 12. b3 {[%emt 0:14:13]} e4 {[%emt 0:07:24]} 13. Bb2 {[%emt 0:00:29]} ({But not} 13. Ndxe4 f5 14. Bh3 Nd8 $15) 13... f5 {[%emt 0:01:18]} 14. Na4 {[%emt 0:02:58]} (14. Rab1 $5 {[%cal Rc3e4]}) 14... Bxb2 {[%emt 0:05:43]} 15. Nxb2 {[%emt 0:00:05]} Rd8 {[%emt 0:02:57]} 16. Nf1 {[%emt 0:08:47]} Ne5 {[%emt 0:03:23]} ({Black should play} 16... b6 $11) 17. f3 $14 {[%emt 0:01:18]} exf3 {[%emt 0:02:39]} 18. exf3 {[%emt 0:00:13]} N7c6 {[%emt 0:02:11]} 19. f4 {[%emt 0:02:31]} Ng4 {[%emt 0:05:02]} 20. Bxc6 {[%emt 0:03:12]} bxc6 {[%emt 0:00:05]} 21. Nd3 {[%emt 0:07:41]} a5 {[%emt 0:00:33]} 22. Nc5 {[%emt 0:08:56] Prevents a4.} Bg8 {[%emt 0:01:45][%cal Oa5a4]} 23. Re1 {[%emt 0:09:02] Prevents a4.} (23. Rxd8+ $142 Kxd8 24. Nd2) 23... a4 $16 {[%emt 0:04:36]} 24. Rad1 {[%emt 0:05:26]} ({Much weaker is} 24. bxa4 Bxc4 25. Re7 Ra5 $11) 24... Rxd1 {[%emt 0:11:20]} 25. Rxd1 {[%emt 0:00:01]} axb3 {[%emt 0:00:08]} 26. axb3 {[%emt 0:00:06] Strongly threatening Rd7.} Ra5 {[%emt 0:01:53]} 27. Rd8+ {[%emt 0:06:44]} Kxd8 {[%emt 0:00:28]} 28. Nb7+ {[%emt 0:00:01]} Kd7 {[%emt 0:03:08]} 29. Nxa5 $11 {[%emt 0:00:01][%mdl 4096] Endgame KBN-KNN} g5 {[%emt 0:04:22]} 30. h3 {[%emt 0:00:58]} (30. b4 $14) 30... Nf6 {[%emt 0:00:17] The position is equal.} 31. fxg5 {[%emt 0:00:34]} hxg5 {[%emt 0:00:12]} 32. Nd2 {[%emt 0:02:27]} Kd6 {[%emt 0:03:25]} 33. b4 {[%emt 0:05:20]} Nd7 {[%emt 0:02:58]} 34. Kf2 {[%emt 0:00:34]} c5 {[%emt 0:02:13]} 35. b5 {[%emt 0:00:15]} Ke5 {[%emt 0:03:00]} 36. Nc6+ {[%emt 0:00:09]} Kd6 {[%emt 0:01:14]} 37. Ke3 {[%emt 0:01:01]} Nb6 {[%emt 0:00:52]} 38. Na5 {[%emt 0:01:06]} Ke5 {[%emt 0:01:14]} 39. Nc6+ {[%emt 0:00:13]} Kd6 {[%emt 0:00:46]} 40. Na5 {[%emt 0:00:40]} Ke5 {[%emt 0:02:31] Weighted Error Value: White=0.09 (flawless) /Black=0.08 (flawless)} 1/2-1/2

[Event "FIDE WSCC 65 2022"]
[Site "Assisi"]
[Date "2022.11.23"]
[Round "8.12"]
[White "Hutchinson, Paul A"]
[Black "Kierzek, Matthias"]
[Result "1-0"]
[ECO "D02"]
[WhiteElo "2148"]
[BlackElo "2237"]
[Annotator "TA"]
[PlyCount "119"]
[EventDate "2022.11.14"]
[EventType "swiss"]
[EventCountry "ITA"]
[SourceTitle "playchess.com"]
[Source "ChessBase"]
[SourceQuality "1"]
[TimeControl "40/5400+30:1800+30"]

{[%evp 9,119,2,27,-31,-27,-29,-31,-27,0,7,16,12,26,0,10,-23,0,0,0,0,0,-26,0,0,52,47,67,64,64,63,119,104,147,116,159,148,156,148,179,170,189,176,308,171,152,163,183,152,171,114,130,115,155,124,125,68,68,68,59,55,55,55,68,73,76,74,59,72,122,94,138,77,91,8,184,181,584,502,1319,1270,1456,1415,4662,4662,4662,4653,4637,4625,4562,4544,4505,4378,4207,3989,3729,3627,4249,3959,2528,3006,2235,2169,1620,1597,1393,1325,1235,920,29963,29963,29969,29964]} 1. d4 {[%emt 1:31:00]} d5 {[%emt 0:00:09]} 2. Bf4 {[%emt 0:00:00]} Nf6 {[%emt 0:00:09]} 3. e3 {[%emt 0:00:00]} c5 {[%emt 0:00:05]} 4. Nf3 {[%emt 0:00:00]} Nc6 {[%emt 0:00:09]} 5. Nbd2 {[%emt 0:00:00]} Nh5 {[%emt 0:00:10]} 6. Bg3 {[%emt 0:00:00] D02: 1 d4 d5 2 Nf3 sidelines, including 2...Nf6 3 g3 and 2...Nf6 3 Bf4.} (6. dxc5 $11 Nxf4 7. exf4) 6... Nxg3 $15 {[%emt 0:01:22]} 7. hxg3 {[%emt 0:00:00]} cxd4 {[%emt 0:04:21]} 8. exd4 {[%emt 0:00:00] Black is slightly better.} e6 {[%emt 0:00:52]} 9. c3 {[%emt 0:00:00]} Bd6 {[%emt 0:07:17]} 10. Bd3 {[%emt 0:00:00]} h6 {[%emt 0:02:34]} 11. Qe2 {[%emt 0:00:00]} Bd7 {[%emt 0:01:19] [#]} 12. c4 $146 {[%emt 0:00:00]} ({Predecessor:} 12. Ne5 Nxe5 13. dxe5 Bc7 14. Nf3 Qe7 15. O-O h5 16. c4 dxc4 17. Be4 c3 18. bxc3 {½-½ (26) Nguyen,V (2352)-Turov,M (2610) Budapest 2018}) 12... Nb4 {[%emt 0:22:50]} 13. Bb1 {[%emt 0:00:00]} dxc4 {[%emt 0:00:28]} 14. Nxc4 {[%emt 0:00:00]} Be7 {[%emt 0:01:01]} 15. Nce5 {[%emt 0:00:00]} Nd5 {[%emt 0:06:47]} (15... Qa5 {looks sharper.} 16. O-O Bb5 17. Nc4 Qa6) 16. O-O {[%emt 0:00:00]} O-O {[%emt 0:03:16]} ({Better is} 16... a6 $11) 17. Qd3 $14 {[%emt 0:00:00][%csl Gb1][%cal Rd3h7] [#]} f5 {[%emt 0:11:30]} 18. a3 {[%emt 0:00:00]} Be8 {[%emt 0:05:50]} 19. Re1 {[%emt 0:00:00]} b5 {[%emt 0:04:39]} (19... Rc8 $14) 20. Ba2 {[%emt 0:00:00]} Rc8 {[%emt 0:02:00]} 21. Qe2 {[%emt 0:00:00] White is more active.} Bd6 {[%emt 0:02:35]} 22. Nd3 {[%emt 0:00:00] Pair of Knights!} Rf6 {[%emt 0:00:22]} 23. Rac1 {[%emt 0:00:00]} Rxc1 {[%emt 0:03:04]} 24. Rxc1 {[%emt 0:00:00]} Bd7 {[%emt 0:00:23]} 25. Nc5 {[%emt 0:00:00]} g5 {[%emt 0:02:49]} (25... Kh7 $142 26. Ne5 Be8) 26. Nxd7 {[%emt 0:00:00]} (26. Ne5 $142 Bxc5 27. Rxc5) 26... Qxd7 $18 {[%emt 0:00:06]} 27. Ne5 {[%emt 0:00:00]} Qb7 {[%emt 0:04:28]} 28. Qc2 {[%emt 0:00:00] Threatens to win with Qc6.} Rf8 {[%emt 0:01:39]} 29. Qc6 {[%emt 0:00:00]} (29. Nd3 $18) 29... Qxc6 $16 {[%emt 0:01:34]} 30. Rxc6 {[%emt 0:00:00]} Bxe5 {[%emt 0:04:06]} 31. dxe5 {[%emt 0:00:00][%mdl 4096] Endgame KRB-KRN} Kf7 {[%emt 0:00:17]} 32. Rd6 {[%emt 0:00:00] Inhibits Rd8.} (32. Ra6 $16) 32... Rc8 $14 {[%emt 0:00:45]} 33. Bxd5 {[%emt 0:00:00]} exd5 {[%emt 0:00:04]} 34. Rxd5 {[%emt 0:00:00] KR-KR} Rc1+ {[%emt 0:00:41]} 35. Kh2 {[%emt 0:00:00]} Rc2 {[%emt 0:00:29][%csl LRb2,LRf2]} 36. Rxb5 {[%emt 0:00:00] f3 is the strong threat.} Rxf2 {[%emt 0:00:16]} 37. b4 {[%emt 0:00:00]} Ke6 {[%emt 0:03:30]} 38. Ra5 {[%emt 0:00:00]} h5 {[%emt 0:00:53]} (38... Rb2 $142) 39. Rxa7 $16 {[%emt 0:00:00]} Kxe5 {[%emt 0:00:13]} 40. a4 {[%emt 0:01:22]} (40. Ra5+ $142 Ke4 41. b5) 40... Rb2 {[%emt 0:01:30]} 41. Rb7 {[%emt 0:34:07]} (41. Re7+ $16 Kd4 42. Rb7) 41... Ra2 $2 {[%emt 0:09:46] [#] This move loses the game for Black.} (41... f4 $1 $11) 42. a5 $18 {[%emt 0:00:00]} Kd6 $2 {[%emt 0:00:12]} (42... g4 43. Rb8 Ke4 44. Re8+ Kd3 45. Rd8+ Kc3) 43. Rb5 {[%emt 0:00:00]} Ra4 {[%emt 0:02:22]} (43... Ke6 $142 44. Rb6+ Kd7) 44. Rxf5 {[%emt 0:00:00]} Rxb4 {[%emt 0:00:09]} 45. Rxg5 {[%emt 0:00:00]} h4 {[%emt 0:00:13]} 46. gxh4 {[%emt 0:00:00]} Rxh4+ {[%emt 0:00:07]} 47. Kg3 {[%emt 0:00:00]} Ra4 {[%emt 0:00:32]} 48. Kh3 {[%emt 0:00:00]} Ke6 {[%emt 0:00:53]} 49. g4 {[%emt 0:00:00]} Kf6 {[%emt 0:01:02]} 50. Rc5 {[%emt 0:00:00]} Ra1 {[%emt 0:01:45]} 51. Kg2 {[%emt 0:00:00]} Ra2+ {[%emt 0:01:38]} 52. Kg3 {[%emt 0:00:00]} Ra1 {[%emt 0:00:13]} 53. Kf3 {[%emt 0:00:00]} Ra3+ {[%emt 0:00:38]} 54. Ke2 {[%emt 0:00:00]} Ra4 {[%emt 0:00:48]} 55. g5+ {[%emt 0:00:00]} Ke6 {[%emt 0:00:23]} 56. Kd3 {[%emt 0:00:00]} Kd6 {[%emt 0:00:09]} 57. Rb5 {[%emt 0:00:00]} Kc6 {[%emt 0:00:27]} 58. Rf5 {[%emt 0:00:00]} Rg4 {[%emt 0:00:42]} 59. a6 {[%emt 0:00:00]} Kc7 {[%emt 0:00:17]} 60. Ra5 {[%emt 0:00:00] Weighted Error Value: White=0.20 (precise) /Black=0.38} 1-0

[Event "FIDE WSCC 65 2022"]
[Site "Assisi"]
[Date "2022.11.23"]
[Round "8.13"]
[White "Mojzis, Jaroslav"]
[Black "Werner, Clemens"]
[Result "0-1"]
[ECO "A31"]
[WhiteElo "2094"]
[BlackElo "2236"]
[Annotator "TA"]
[PlyCount "66"]
[EventDate "2022.11.14"]
[EventType "swiss"]
[EventCountry "ITA"]
[SourceTitle "playchess.com"]
[Source "ChessBase"]
[SourceQuality "1"]
[TimeControl "40/5400+30:1800+30"]

{[%evp 10,66,31,14,22,29,15,0,0,-17,-16,-13,-27,-31,-20,-66,-58,-120,-114,-236,-241,-239,-235,-242,-242,-264,-267,-265,-268,-269,-257,-284,-263,-229,-229,-283,-287,-287,-287,-284,-280,-358,-343,-350,-399,-547,-577,-554,-554,-556,-532,-741,-725,-660,-638,-973,-943,-834,-725]} 1. Nf3 {[%emt 0:00:29]} c5 {[%emt 0:02:51]} 2. c4 {[%emt 0:00:42]} Nc6 {[%emt 0:00:42]} 3. d4 {[%emt 0:05:01]} cxd4 {[%emt 0:00:26]} 4. Nxd4 {[%emt 0:00:06]} Nf6 {[%emt 0:02:27][%cal Bg8f6,Bf6d5,Bd5c3][%mdl 32]} 5. Nc3 {[%emt 0:02:41]} d5 {[%emt 0:06:43]} 6. cxd5 {[%emt 0:05:32]} Nxd5 {[%emt 0:00:01] A31: Symmetrical English: 2 Nf3 Nf6 3 d4.} 7. Nxc6 {[%emt 0:03:43]} bxc6 {[%emt 0:00:11]} 8. g3 {[%emt 0:00:46]} Nxc3 {[%emt 0:08:26][%csl Gc3][%cal Rd8d1] The position is equal.} 9. Qxd8+ {[%emt 0:01:26]} Kxd8 {[%emt 0:00:14]} 10. bxc3 {[%emt 0:00:14]} e5 {[%emt 0:00:48]} 11. Bg2 {[%emt 0:08:22]} Kc7 {[%emt 0:01:32] [#]} 12. O-O $146 {[%emt 0:12:26]} (12. Be3 $11 {deserves consideration.}) ({Predecessor:} 12. Be3 Ba6 13. a4 Be7 14. f4 exf4 15. Bxf4+ Bd6 16. O-O Bxf4 17. Rxf4 f6 18. Rg4 {0-1 (45) Pakhteev,Y (2311)-Pugachov,V (2088) Dubna 2008}) 12... Bc5 $15 {[%emt 0:01:18]} 13. Bb2 {[%emt 0:09:42]} (13. Be4 $15) 13... Rb8 $17 {[%emt 0:01:29]} 14. Rab1 {[%emt 0:01:04] [#]} (14. Bc1 $17) 14... Bf5 $1 $19 {[%emt 0:05:27]} 15. e4 {[%emt 0:00:07]} Be6 {[%emt 0:00:07]} 16. c4 {[%emt 0:00:09]} f6 {[%emt 0:01:10]} (16... Bxc4 17. Bxe5+ Bd6 18. Bxd6+ Kxd6 19. Rfd1+ Kc7 20. Rbc1 Bxa2 21. e5 $11) 17. Rfc1 {[%emt 0:00:30]} Rhd8 {[%emt 0:08:41] Hoping for ...Rd2.} 18. Bc3 {[%emt 0:11:41] Against Rd2} Rxb1 {[%emt 0:03:20]} ({Don't do} 18... Bxc4 19. Ba5+ Bb6 20. Bxb6+ Rxb6 21. Rxb6 axb6 22. Rxc4 $18) 19. Rxb1 {[%emt 0:00:05]} Bxc4 {[%emt 0:03:48]} 20. a4 {[%emt 0:04:17]} Bb6 {[%emt 0:10:33]} 21. Bf1 {[%emt 0:02:37] [#]} Bd3 {[%emt 0:07:41]} 22. Bxd3 {[%emt 0:02:01]} Rxd3 {[%emt 0:00:07][%mdl 4096] Endgame KRB-KRB} 23. Rc1 {[%emt 0:00:19]} Bd4 {[%emt 0:03:33]} 24. Bb4 {[%emt 0:00:35]} Rb3 {[%emt 0:01:21]} 25. Bf8 {[%emt 0:00:51]} Rb2 {[%emt 0:02:58]} 26. Bxg7 {[%emt 0:00:26]} Rxf2 {[%emt 0:00:10] ...Rc2+ is the strong threat.} ({Weaker is} 26... Bxf2+ 27. Kh1 $19) 27. Rf1 {[%emt 0:03:14]} Re2+ {[%emt 0:04:35] Black is clearly winning.} 28. Kh1 {[%emt 0:00:08]} c5 {[%emt 0:00:39]} 29. Rc1 {[%emt 0:07:49]} Rxe4 {[%emt 0:01:20]} 30. Rc2 {[%emt 0:00:58]} f5 {[%emt 0:00:30]} 31. Kg2 {[%emt 0:00:24]} Kc6 {[%emt 0:00:46]} 32. h3 {[%emt 0:01:49]} Kd5 {[%emt 0:00:13]} 33. Bh6 {[%emt 0:00:21]} Re1 {[%emt 0:00:49] Black took control after the opening.   Weighted Error Value: White=0.44/Black=0.02 (flawless)} 0-1

[Event "FIDE WSCC 65 2022"]
[Site "Assisi"]
[Date "2022.11.23"]
[Round "8.14"]
[White "Sideifzade, Fikret"]
[Black "Vogel, Jaap"]
[Result "1/2-1/2"]
[ECO "E01"]
[WhiteElo "2391"]
[BlackElo "2119"]
[Annotator "TA"]
[PlyCount "34"]
[EventDate "2022.11.14"]
[EventType "swiss"]
[EventCountry "ITA"]
[SourceTitle "playchess.com"]
[Source "ChessBase"]
[SourceQuality "1"]
[TimeControl "40/5400+30:1800+30"]

{[%evp 17,34,18,27,3,17,14,20,4,8,-37,-8,-75,-64,-77,-92,-91,-71,-81,-48]} 1. d4 {[%emt 0:00:03]} e6 {[%emt 0:00:07]} 2. c4 {[%emt 0:02:23]} f5 {[%emt 0:00:08]} 3. Nc3 {[%emt 0:00:24]} Nf6 {[%emt 0:00:22]} 4. g3 {[%emt 0:02:44]} c6 {[%emt 0:00:54]} 5. Bg2 {[%emt 0:03:56]} d5 {[%emt 0:00:22]} 6. Nf3 {[%emt 0:00:17]} Bd6 {[%emt 0:01:27]} 7. O-O {[%emt 0:00:06]} O-O {[%emt 1:30:40]} 8. b3 {[%emt 0:01:29]} Nbd7 {[%emt 0:00:00]} 9. Qc2 {[%emt 0:00:39]} Ne4 {[%emt 0:00:00]} 10. Nd2 {[%emt 0:14:40][%cal Rd2e4] E01: Catalan: Early deviations.} Nxc3 {[%emt 0:00:00]} 11. Qxc3 {[%emt 0:03:09]} Qe7 {[%emt 0:00:00] [#]} 12. Bb2 $146 {[%emt 0:04:55] The position is equal.} ({Predecessor:} 12. Nf3 b6 13. Bf4 Bb7 14. Rac1 a5 15. Bxd6 Qxd6 16. Rfd1 Rfe8 17. e3 Rec8 18. Qd2 {½-½ (50) Bekasovs,R (2182)-Tsoi,D (2429) Konya 2018}) 12... b6 {[%emt 0:00:00]} 13. f3 {[%emt 0:18:25]} Bb7 {[%emt 0:00:00]} 14. e4 {[%emt 0:04:02]} (14. f4 $1 $11 {keeps the balance.}) 14... e5 {[%emt 0:00:00][%cal Be6e5,Be5d4,Bd4d3][%mdl 32]} 15. exd5 {[%emt 0:21:45] [#]} exd4 {[%emt 0:00:00] Black is better.} (15... cxd5 $6 16. Rae1 $11) 16. Qc2 {[%emt 0:00:16]} (16. Qxd4 $2 {is the wrong capture.} Bc5 17. f4 cxd5 $19) 16... Qe3+ {[%emt 0:00:00]} ({Don't play} 16... cxd5 $6 17. Rfe1 Qf6 18. f4 $15) 17. Kh1 {[%emt 0:00:28] [#] aiming for f4.} d3 $1 {[%emt 0:00:00] Black took control after the opening.   Weighted Error Value: White=0.27 (precise) /Black=0.10 (very precise)} ({Of course not} 17... cxd5 $6 18. Rfe1 Qf2 19. Rf1 $11) 1/2-1/2

[Event "FIDE WSCC 65 2022"]
[Site "Assisi"]
[Date "2022.11.23"]
[Round "8.15"]
[White "Strutinskaia, Galina"]
[Black "Binham, Timothy F."]
[Result "1/2-1/2"]
[ECO "E10"]
[WhiteElo "2137"]
[BlackElo "2284"]
[Annotator "TA"]
[PlyCount "35"]
[EventDate "2022.11.14"]
[EventType "swiss"]
[EventCountry "ITA"]
[SourceTitle "playchess.com"]
[Source "ChessBase"]
[SourceQuality "1"]
[TimeControl "40/5400+30:1800+30"]

{[%evp 11,35,37,69,33,22,22,14,-38,-35,-54,-37,-41,-26,-51,-41,-32,0,7,12,17,22,10,52,41,73,38]} 1. d4 {[%emt 0:00:03]} Nf6 {[%emt 0:00:11]} 2. Nf3 {[%emt 0:00:07]} c5 {[%emt 0:00:20]} 3. d5 {[%emt 0:00:17]} e6 {[%emt 0:00:31]} 4. c4 {[%emt 0:01:27]} b5 {[%emt 0:00:29]} 5. Bg5 {[%emt 0:00:30]} exd5 {[%emt 0:00:41]} 6. cxd5 {[%emt 0:00:19]} d6 {[%emt 0:00:13]} 7. a4 {[%emt 0:03:24] E10: Blumenfeld Gambit.} (7. e4 $5) 7... b4 {[%emt 0:00:49]} 8. Nbd2 {[%emt 0:05:25]} Be7 {[%emt 0:00:29]} 9. Nc4 {[%emt 0:01:11]} (9. e4 $11) 9... O-O $15 {[%emt 0:00:24] [#]} 10. e3 $146 {[%emt 0:00:43]} ({Predecessor:} 10. Bxf6 Bxf6 11. e4 Ba6 12. Qc2 b3 13. Qxb3 Nd7 14. Nfd2 Rb8 15. Qc2 Bxc4 16. Nxc4 {0-1 (43) Dill,X (2152)-Vonthron,H (2345) Baden 2019}) 10... Nbd7 {[%emt 0:06:16]} 11. Bd3 {[%emt 0:04:29]} Ba6 {[%emt 0:17:33]} 12. Rc1 {[%emt 0:04:50]} h6 {[%emt 0:08:25]} ({Don't play} 12... Nxd5 {[#]} 13. Bxh7+ $1 Kxh7 14. Qxd5 $11) 13. Bxf6 {[%emt 0:01:50]} Nxf6 {[%emt 0:02:15]} 14. e4 {[%emt 0:01:35]} Re8 {[%emt 0:03:06][%cal Of6e4]} 15. O-O {[%emt 0:00:23]} Bf8 {[%emt 0:02:24]} 16. Re1 {[%emt 0:01:21]} Bb7 {[%emt 0:01:48]} 17. Nfd2 {[%emt 0:06:39]} a5 {[%emt 0:07:15]} 18. h3 {[%emt 0:02:49] Weighted Error Value: White=0.14 (very precise) /Black=0.13 (very precise)} 1/2-1/2